fUSD/lending_fUSD_20241227
["ID","MTS","AMOUNT","RATE_DAILY","PERIOD"]
[346875745,1735336283084,-598.13,0.00012384,2]
[346875746,1735336283093,-737.59,0.00012384,2]
[346875747,1735336283103,-985.21,0.00012384,2]
[346875748,1735336283113,-724.58,0.00012384,2]
[346875749,1735336283122,-567.32,0.00012384,2]
[346875750,1735336283131,-726.25,0.00012384,2]
[346875751,1735336283142,-615.69,0.00012384,2]
[346875752,1735336283156,-1708.12,0.00012384,2]
[346875753,1735336283166,-1184.29,0.00012384,2]
[346875754,1735336283175,-548.56,0.00012384,2]
[346875755,1735336283184,-1426.63,0.00012384,2]
[346875756,1735336283194,-553.77,0.00012384,2]
[346875757,1735336283204,-780.99,0.00012384,2]
[346875758,1735336283213,-776.14,0.00012384,2]
[346875759,1735336283223,-500.0,0.00012384,2]
[346875760,1735336283233,-1224.21,0.00012384,2]
[346875761,1735336283243,-520.15,0.00012384,2]
[346875762,1735336283252,-716.45,0.00012384,2]
[346875763,1735336283263,-14172.37617569,0.00012384,2]
[346875764,1735336283272,-612411.92158331,0.00012384,2]
[346875765,1735336283293,-5094.5,0.00012384,2]
[346875766,1735336283304,-5523.5,0.00012384,2]
[346875767,1735336283316,-385184.41546954,0.00012384,2]
[346875780,1735336361765,287.58,9.601e-05,2]
[346875781,1735336363776,1019.88,8.97e-05,2]
[346875782,1735336514089,1000.0,0.0002,120]
[346875783,1735336664546,-249.53,0.00012999,9]
[346875784,1735336707746,-1000.0,0.00012999,8]
[346875787,1735336753471,-1600.0,0.00012894,7]
[346875788,1735336753518,-1000.0,0.00012999,7]
[346875790,1735336833834,-1000.0,0.00012999,6]
[346875791,1735336867890,-1000.0,0.00012999,5]
[346875793,1735337070424,161.34,9.557e-05,2]
[346875802,1735337236635,231.62,9.481e-05,2]
[346875824,1735337267964,23900.0,9.445e-05,2]
[346875832,1735337345551,162.12,9.515e-05,2]
[346876281,1735337365025,1256.51,9.515e-05,2]
[346876333,1735337366901,968.88,8.219e-05,2]
[346876819,1735337431708,-540.577923,9.612e-05,2]
[346876820,1735337431718,-250.0,9.661e-05,2]
[346876821,1735337431729,-275.14,9.69e-05,2]
[346876822,1735337431738,-1609.76,9.69e-05,2]
[346876823,1735337431748,-250.0,9.782e-05,2]
[346876824,1735337431757,-1000.0,9.782e-05,2]
[346876825,1735337431766,-943.6316685,9.782e-05,2]
[346876826,1735337431776,-167.31,9.787e-05,2]
[346876827,1735337431786,-1500.0,9.9e-05,2]
[346876828,1735337431796,-184.69,9.92e-05,2]
[346876829,1735337431805,-1413.21185529,0.00010052,2]
[346876830,1735337431816,-14691.78814471,0.00010052,2]
[346876831,1735337431826,-245.29,0.00010058,2]
[346876832,1735337431835,-179.53,0.00010137,2]
[346876833,1735337431845,-254.01,0.00010156,2]
[346876834,1735337431855,-246.83,0.00010156,2]
[346876835,1735337431865,-254.78,0.00010156,2]
[346876836,1735337431874,-251.97,0.00010156,2]
[346876837,1735337431883,-245.84,0.00010156,2]
[346876838,1735337431893,-253.38,0.00010156,2]
[346876839,1735337431902,-253.23,0.00010208,2]
[346876840,1735337431911,-246.91,0.00010208,2]
[346876841,1735337431922,-252.66,0.00010208,2]
[346876842,1735337431932,-250.55,0.00010208,2]
[346876843,1735337431941,-245.86,0.0001026,2]
[346876844,1735337431951,-250.44,0.0001026,2]
[346876845,1735337431961,-254.54,0.0001026,2]
[346876846,1735337431971,-246.79,0.0001026,2]
[346876847,1735337431982,-250.85,0.0001026,2]
[346876848,1735337431991,-978.49414827,0.00010264,2]
[346876849,1735337432004,-250.0,0.00010281,2]
[346876850,1735337432014,-249.33,0.00010312,2]
[346876851,1735337432023,-254.0,0.00010312,2]
[346876852,1735337432032,-245.11,0.00010312,2]
[346876853,1735337432043,-246.94,0.00010312,2]
[346876854,1735337432052,-251.13,0.00010312,2]
[346876855,1735337432062,-251.6,0.00010364,2]
[346876856,1735337432071,-7274.7812,0.00010364,2]
[346876857,1735337432080,-842.3602,0.00010364,2]
[346876858,1735337432089,-1485.475,0.00010364,2]
[346876860,1735337432098,-14769.56825837,0.00010364,2]
[346876871,1735337432488,-166.98484163,0.00010364,2]
[346876872,1735337432498,-245.27,0.00010364,2]
[346876873,1735337432508,-29173.7518,0.00010365,2]
[346876874,1735337432518,-253.91,0.00010412,2]
[346876875,1735337432528,-968.88,0.0001045,2]
[346876876,1735337432538,-1018.23272288,0.00010463,2]
[346876877,1735337432565,-569.54727712,0.00010463,2]
[346876878,1735337432575,-558.06,0.00010463,2]
[346876879,1735337432584,-1162.99,0.00010463,2]
[346876880,1735337432594,-637.02,0.00010463,2]
[346876881,1735337432604,-1129.03,0.00010463,2]
[346876882,1735337432613,-7183.04,0.00010463,2]
[346876883,1735337432623,-500.0,0.00010463,2]
[346876884,1735337432633,-696.32,0.00010463,2]
[346876885,1735337432642,-614.82,0.00010463,2]
[346876886,1735337432652,-500.0,0.00010463,2]
[346876887,1735337432663,-3053.31,0.00010463,2]
[346876888,1735337432673,-500.0,0.00010463,2]
[346876889,1735337432683,-1253.84,0.00010463,2]
[346876890,1735337432692,-718.3,0.00010463,2]
[346876891,1735337432701,-500.0,0.00010463,2]
[346876892,1735337432711,-4062.98,0.00010463,2]
[346876893,1735337432720,-500.0,0.00010463,2]
[346876894,1735337432730,-1170.25,0.00010463,2]
[346876895,1735337432740,-640.45,0.00010463,2]
[346876896,1735337432750,-1248.32,0.00010463,2]
[346876897,1735337432760,-1298.59,0.00010463,2]
[346876898,1735337432770,-751.3,0.00010463,2]
[346876899,1735337432779,-1539.1,0.00010463,2]
[346876900,1735337432790,-848.02,0.00010463,2]
[346876901,1735337432800,-1580.69,0.00010463,2]
[346876902,1735337432809,-539.84,0.00010463,2]
[346876903,1735337432820,-918.89,0.00010463,2]
[346876904,1735337432829,-500.0,0.00010463,2]
[346876905,1735337432838,-524.03,0.00010463,2]
[346876906,1735337432848,-801.09,0.00010463,2]
[346876907,1735337432858,-500.0,0.00010463,2]
[346876908,1735337432868,-660.9,0.00010463,2]
[346876909,1735337432878,-500.0,0.00010463,2]
[346876910,1735337432891,-500.0,0.00010463,2]
[346876911,1735337432901,-500.0,0.00010463,2]
[346876912,1735337432911,-500.0,0.00010463,2]
[346876913,1735337432923,-500.0,0.00010463,2]
[346876914,1735337432934,-500.0,0.00010463,2]
[346876915,1735337432944,-500.0,0.00010463,2]
[346876916,1735337432954,-500.0,0.00010463,2]
[346876917,1735337432963,-500.0,0.00010464,2]
[346876918,1735337432974,-500.0,0.00010464,2]
[346876919,1735337432984,-500.0,0.00010464,2]
[346876920,1735337432994,-500.0,0.00010464,2]
[346876921,1735337433003,-500.0,0.00010464,2]
[346876922,1735337433014,-500.0,0.00010464,2]
[346876923,1735337433023,-500.0,0.00010464,2]
[346876924,1735337433033,-500.0,0.00010464,2]
[346876925,1735337433043,-500.0,0.00010464,2]
[346876926,1735337433054,-500.0,0.00010464,2]
[346876927,1735337433063,-500.0,0.00010464,2]
[346876928,1735337433073,-500.0,0.00010464,2]
[346876929,1735337433084,-514.25400868,0.00010464,2]
[346876930,1735337433094,-500.0,0.00010464,2]
[346876931,1735337433105,-500.0,0.00010464,2]
[346876932,1735337433115,-500.0,0.00010464,2]
[346876933,1735337433124,-501.5906094,0.00010464,2]
[346876934,1735337433134,-500.0,0.00010464,2]
[346876935,1735337433144,-500.0,0.00010464,2]
[346876936,1735337433154,-500.0,0.00010464,2]
[346876937,1735337433163,-500.0,0.00010464,2]
[346876938,1735337433173,-500.0,0.00010464,2]
[346876939,1735337433182,-500.0,0.00010464,2]
[346876940,1735337433192,-500.0,0.00010464,2]
[346876941,1735337433202,-500.0,0.00010464,2]
[346876942,1735337433211,-540.73985475,0.00010464,2]
[346876943,1735337433221,-500.0,0.00010464,2]
[346876944,1735337433232,-500.0,0.00010464,2]
[346876945,1735337433243,-500.0,0.00010464,2]
[346876946,1735337433253,-500.0,0.00010464,2]
[346876947,1735337433263,-500.0,0.00010464,2]
[346876948,1735337433272,-756.82,0.00010464,2]
[346876949,1735337433282,-500.0,0.00010464,2]
[346876950,1735337433292,-500.0,0.00010464,2]
[346876951,1735337433302,-500.0,0.00010464,2]
[346876952,1735337433312,-433.91429704,0.00010464,2]
[346876953,1735337433322,-500.0,0.00010464,2]
[346876954,1735337433331,-500.0,0.00010464,2]
[346876955,1735337433341,-500.0,0.00010464,2]
[346876956,1735337433351,-500.0,0.00010464,2]
[346876957,1735337433360,-256.17070529,0.00010464,2]
[346876958,1735337433370,-964.3,0.00010464,2]
[346876959,1735337433380,-500.0,0.00010464,2]
[346876960,1735337433391,-500.0,0.00010464,2]
[346876961,1735337433401,-500.0,0.00010464,2]
[346876962,1735337433411,-505.0350929,0.00010464,2]
[346876963,1735337433420,-500.0,0.00010464,2]
[346876964,1735337433430,-500.0,0.00010464,2]
[346876965,1735337433440,-500.0,0.00010464,2]
[346876966,1735337433449,-500.0,0.00010464,2]
[346876967,1735337433458,-500.0,0.00010464,2]
[346876968,1735337433467,-1057.65,0.00010464,2]
[346876969,1735337433478,-500.0,0.00010464,2]
[346876970,1735337433487,-303.92024624,0.00010464,2]
[346876971,1735337433496,-500.0,0.00010464,2]
[346876972,1735337433506,-500.0,0.00010464,2]
[346876973,1735337433515,-500.0,0.00010464,2]
[346876974,1735337433524,-500.0,0.00010464,2]
[346876975,1735337433533,-500.0,0.00010464,2]
[346876976,1735337433543,-500.0,0.00010464,2]
[346876977,1735337433552,-500.0,0.00010464,2]
[346876978,1735337433562,-154.50651557,0.00010464,2]
[346876979,1735337433572,-898.76,0.00010464,2]
[346876980,1735337433581,-500.0,0.00010464,2]
[346876981,1735337433591,-500.0,0.00010464,2]
[346876982,1735337433601,-500.0,0.00010464,2]
[346876983,1735337433610,-500.0,0.00010464,2]
[346876984,1735337433620,-500.0,0.00010464,2]
[346876985,1735337433630,-500.0,0.00010464,2]
[346876986,1735337433640,-500.0,0.00010464,2]
[346876987,1735337433649,-500.0,0.00010464,2]
[346876988,1735337433659,-500.0,0.00010464,2]
[346876989,1735337433669,-210.3508512,0.00010464,2]
[346876990,1735337433679,-500.0,0.00010464,2]
[346876991,1735337433689,-500.0,0.00010464,2]
[346876992,1735337433699,-500.0,0.00010464,2]
[346876993,1735337433709,-500.0,0.00010464,2]
[346876994,1735337433719,-500.0,0.00010464,2]
[346876995,1735337433731,-500.0,0.00010464,2]
[346876996,1735337433741,-500.0,0.00010464,2]
[346876997,1735337433751,-500.0,0.00010464,2]
[346876998,1735337433761,-500.0,0.00010464,2]
[346876999,1735337433770,-500.0,0.00010464,2]
[346877000,1735337433780,-632.63443927,0.00010464,2]
[346877001,1735337433790,-501.34916681,0.00010464,2]
[346877002,1735337433799,-1586.4,0.00010464,2]
[346877003,1735337433809,-500.0,0.00010464,2]
[346877004,1735337433818,-500.0,0.00010464,2]
[346877005,1735337433828,-500.0,0.00010464,2]
[346877006,1735337433838,-500.0,0.00010464,2]
[346877007,1735337433848,-500.0,0.00010464,2]
[346877008,1735337433858,-500.0,0.00010464,2]
[346877009,1735337433868,-500.0,0.00010464,2]
[346877010,1735337433877,-500.0,0.00010464,2]
[346877011,1735337433887,-500.0,0.00010464,2]
[346877012,1735337433896,-500.0,0.00010464,2]
[346877013,1735337433906,-500.0,0.00010464,2]
[346877014,1735337433917,-500.0,0.00010464,2]
[346877015,1735337433929,-500.0,0.00010464,2]
[346877016,1735337433938,-500.0,0.00010464,2]
[346877017,1735337433948,-500.0,0.00010464,2]
[346877018,1735337433958,-1087.21,0.00010464,2]
[346877019,1735337433969,-500.0,0.00010464,2]
[346877020,1735337433979,-500.0,0.00010464,2]
[346877021,1735337433989,-500.0,0.00010464,2]
[346877022,1735337434001,-500.0,0.00010464,2]
[346877023,1735337434011,-500.0,0.00010464,2]
[346877024,1735337434020,-500.0,0.00010464,2]
[346877025,1735337434030,-500.0,0.00010464,2]
[346877026,1735337434039,-500.0,0.00010464,2]
[346877027,1735337434048,-500.0,0.00010464,2]
[346877028,1735337434058,-500.0,0.00010464,2]
[346877029,1735337434067,-500.0,0.00010464,2]
[346877030,1735337434077,-500.0,0.00010464,2]
[346877031,1735337434088,-500.0,0.00010464,2]
[346877032,1735337434097,-648.31436106,0.00010464,2]
[346877033,1735337434106,-500.0,0.00010464,2]
[346877034,1735337434116,-500.0,0.00010464,2]
[346877035,1735337434125,-500.0,0.00010464,2]
[346877036,1735337434135,-500.0,0.00010464,2]
[346877037,1735337434144,-4606.94,0.00010464,2]
[346877038,1735337434154,-500.0,0.00010464,2]
[346877039,1735337434164,-500.0,0.00010464,2]
[346877040,1735337434173,-500.0,0.00010464,2]
[346877041,1735337434183,-500.0,0.00010464,2]
[346877042,1735337434193,-500.0,0.00010464,2]
[346877043,1735337434205,-500.0,0.00010464,2]
[346877044,1735337434214,-500.0,0.00010464,2]
[346877045,1735337434225,-500.0,0.00010464,2]
[346877046,1735337434234,-500.0,0.00010464,2]
[346877047,1735337434244,-500.0,0.00010464,2]
[346877048,1735337434254,-500.0,0.00010464,2]
[346877049,1735337434262,-500.0,0.00010464,2]
[346877050,1735337434271,-500.0,0.00010464,2]
[346877051,1735337434279,-500.0,0.00010464,2]
[346877052,1735337434288,-500.0,0.00010464,2]
[346877053,1735337434299,-500.0,0.00010464,2]
[346877054,1735337434308,-500.0,0.00010464,2]
[346877055,1735337434317,-500.0,0.00010464,2]
[346877056,1735337434327,-500.0,0.00010464,2]
[346877057,1735337434337,-500.0,0.00010464,2]
[346877058,1735337434346,-709.78,0.00010464,2]
[346877059,1735337434356,-500.0,0.00010464,2]
[346877060,1735337434366,-500.0,0.00010464,2]
[346877061,1735337434376,-500.0,0.00010464,2]
[346877062,1735337434386,-500.0,0.00010464,2]
[346877063,1735337434396,-500.0,0.00010464,2]
[346877064,1735337434406,-500.0,0.00010464,2]
[346877065,1735337434416,-500.0,0.00010464,2]
[346877066,1735337434426,-500.0,0.00010464,2]
[346877067,1735337434436,-500.0,0.00010464,2]
[346877068,1735337434446,-500.0,0.00010464,2]
[346877069,1735337434455,-320.59588279,0.00010464,2]
[346877070,1735337434480,-179.40411721,0.00010464,2]
[346877071,1735337434491,-438.82462211,0.00010464,2]
[346877072,1735337434501,-500.0,0.00010464,2]
[346877073,1735337434511,-500.0,0.00010464,2]
[346877074,1735337434520,-501.61706296,0.00010464,2]
[346877075,1735337434530,-71.98217176,0.00010464,2]
[346877076,1735337434544,-428.01782824,0.00010464,2]
[346877077,1735337434554,-500.0,0.00010464,2]
[346877078,1735337434563,-500.0,0.00010464,2]
[346877079,1735337434573,-500.0,0.00010464,2]
[346877080,1735337434584,-500.0,0.00010464,2]
[346877081,1735337434593,-500.0,0.00010464,2]
[346877082,1735337434603,-296.27040841,0.00010464,2]
[346877083,1735337434616,-203.72959159,0.00010464,2]
[346877084,1735337434626,-276.1457056,0.00010464,2]
[346877085,1735337434644,-223.8542944,0.00010464,2]
[346877086,1735337434654,-500.0,0.00010464,2]
[346877087,1735337434664,-500.0,0.00010464,2]
[346877088,1735337434674,-500.0,0.00010464,2]
[346877089,1735337434683,-500.0,0.00010464,2]
[346877090,1735337434693,-500.0,0.00010464,2]
[346877091,1735337434702,-500.0,0.00010464,2]
[346877092,1735337434712,-521.21,0.00010464,2]
[346877093,1735337434721,-500.0,0.00010464,2]
[346877094,1735337434731,-634.51,0.00010464,2]
[346877095,1735337434740,-500.0,0.00010464,2]
[346877096,1735337434750,-3244.22,0.00010464,2]
[346877097,1735337434760,-500.0,0.00010464,2]
[346877098,1735337434769,-501.10928318,0.00010464,2]
[346877099,1735337434779,-500.0,0.00010464,2]
[346877100,1735337434789,-500.0,0.00010464,2]
[346877101,1735337434799,-500.0,0.00010464,2]
[346877102,1735337434808,-500.0,0.00010464,2]
[346877103,1735337434818,-500.0,0.00010464,2]
[346877104,1735337434827,-500.0,0.00010464,2]
[346877105,1735337434838,-500.0,0.00010464,2]
[346877106,1735337434847,-500.0,0.00010464,2]
[346877107,1735337434856,-501.71787192,0.00010464,2]
[346877108,1735337434866,-500.0,0.00010464,2]
[346877109,1735337434875,-500.0,0.00010464,2]
[346877110,1735337434884,-500.0,0.00010464,2]
[346877111,1735337434894,-500.0,0.00010464,2]
[346877112,1735337434903,-500.0,0.00010464,2]
[346877113,1735337434913,-500.0,0.00010464,2]
[346877114,1735337434926,-500.0,0.00010464,2]
[346877115,1735337434935,-502.05344853,0.00010464,2]
[346877116,1735337434944,-500.0,0.00010464,2]
[346877117,1735337434954,-500.0,0.00010464,2]
[346877118,1735337434963,-500.0,0.00010464,2]
[346877119,1735337434972,-500.0,0.00010464,2]
[346877120,1735337434982,-500.0,0.00010464,2]
[346877121,1735337434992,-500.0,0.00010464,2]
[346877122,1735337435001,-153.3647197,0.00010464,2]
[346877123,1735337435011,-500.0,0.00010464,2]
[346877124,1735337435020,-500.0,0.00010464,2]
[346877125,1735337435030,-362.19479977,0.00010464,2]
[346877126,1735337435043,-137.80520023,0.00010464,2]
[346877127,1735337435052,-171.20679977,0.00010464,2]
[346877128,1735337435071,-328.79320023,0.00010464,2]
[346877129,1735337435080,-500.0,0.00010464,2]
[346877130,1735337435089,-500.0,0.00010464,2]
[346877131,1735337435099,-500.0,0.00010464,2]
[346877132,1735337435334,-500.0,0.00010464,2]
[346877133,1735337435344,-500.0,0.00010464,2]
[346877134,1735337435354,-500.0,0.00010464,2]
[346877135,1735337435363,-500.0,0.00010464,2]
[346877136,1735337435372,-500.0,0.00010464,2]
[346877137,1735337435381,-362.87553901,0.00010464,2]
[346877138,1735337435391,-500.0,0.00010464,2]
[346877139,1735337435400,-88.09868409,0.00010464,2]
[346877140,1735337435412,-411.90131591,0.00010464,2]
[346877141,1735337435422,-500.0,0.00010464,2]
[346877142,1735337435431,-500.0,0.00010464,2]
[346877143,1735337435441,-500.0,0.00010464,2]
[346877144,1735337435450,-500.0,0.00010464,2]
[346877145,1735337435460,-500.0,0.00010464,2]
[346877146,1735337435469,-500.0,0.00010464,2]
[346877147,1735337435479,-500.0,0.00010464,2]
[346877148,1735337435488,-500.0,0.00010464,2]
[346877149,1735337435498,-688.38,0.00010464,2]
[346877150,1735337435508,-74.15221124,0.00010464,2]
[346877151,1735337435520,-425.84778876,0.00010464,2]
[346877152,1735337435529,-500.0,0.00010464,2]
[346877153,1735337435538,-409.42614115,0.00010464,2]
[346877154,1735337435554,-90.57385885,0.00010464,2]
[346877155,1735337435563,-318.40526731,0.00010464,2]
[346877156,1735337435575,-181.59473269,0.00010464,2]
[346877157,1735337435585,-295.0803917,0.00010464,2]
[346877160,1735337437522,-949.56,0.00010463,2]
[346877161,1735337437532,-204.9196083,0.00010464,2]
[346877162,1735337437542,-500.0,0.00010464,2]
[346877163,1735337437552,-339.60944584,0.00010464,2]
[346877164,1735337437688,-160.39055416,0.00010464,2]
[346877165,1735337437699,-500.0,0.00010464,2]
[346877166,1735337437708,-500.0,0.00010464,2]
[346877167,1735337437718,-500.0,0.00010464,2]
[346877168,1735337437727,-318.59715271,0.00010464,2]
[346877169,1735337437739,-181.40284729,0.00010464,2]
[346877170,1735337437749,-500.0,0.00010464,2]
[346877171,1735337437759,-500.0,0.00010464,2]
[346877172,1735337437769,-500.0,0.00010464,2]
[346877173,1735337437778,-500.0,0.00010464,2]
[346877174,1735337437788,-199.24753259,0.00010464,2]
[346877175,1735337437797,-500.0,0.00010464,2]
[346877176,1735337437806,-500.0,0.00010464,2]
[346877177,1735337437816,-500.0,0.00010464,2]
[346877178,1735337437825,-500.0,0.00010464,2]
[346877179,1735337437835,-500.0,0.00010464,2]
[346877180,1735337437844,-500.0,0.00010464,2]
[346877181,1735337437853,-500.0,0.00010464,2]
[346877182,1735337437863,-500.0,0.00010464,2]
[346877183,1735337437872,-500.0,0.00010464,2]
[346877185,1735337437881,-500.0,0.00010464,2]
[346877187,1735337437890,-500.0,0.00010464,2]
[346877188,1735337437900,-500.0,0.00010464,2]
[346877190,1735337437909,-500.0,0.00010464,2]
[346877192,1735337437920,-510.38,0.00010464,2]
[346877194,1735337437933,-500.0,0.00010464,2]
[346877196,1735337437943,-500.0,0.00010464,2]
[346877197,1735337437952,-500.0,0.00010464,2]
[346877198,1735337437961,-500.0,0.00010464,2]
[346877199,1735337437972,-500.0,0.00010464,2]
[346877200,1735337437982,-500.0,0.00010464,2]
[346877201,1735337437991,-324.56584885,0.00010464,2]
[346877202,1735337438002,-500.0,0.00010464,2]
[346877203,1735337438012,-500.0,0.00010464,2]
[346877204,1735337438022,-500.0,0.00010464,2]
[346877205,1735337438031,-501.27730481,0.00010464,2]
[346877206,1735337438040,-500.0,0.00010464,2]
[346877207,1735337438050,-500.0,0.00010464,2]
[346877208,1735337438060,-500.0,0.00010464,2]
[346877209,1735337438069,-500.0,0.00010464,2]
[346877210,1735337438079,-500.0,0.00010464,2]
[346877211,1735337438088,-500.0,0.00010464,2]
[346877212,1735337438097,-500.0,0.00010464,2]
[346877213,1735337438107,-500.0,0.00010464,2]
[346877214,1735337438116,-212.03646646,0.00010464,2]
[346877215,1735337438129,-287.96353354,0.00010464,2]
[346877216,1735337438139,-500.0,0.00010464,2]
[346877217,1735337438148,-500.0,0.00010464,2]
[346877218,1735337438157,-500.0,0.00010464,2]
[346877219,1735337438167,-500.0,0.00010464,2]
[346877220,1735337438176,-500.0,0.00010464,2]
[346877221,1735337438185,-500.0,0.00010464,2]
[346877222,1735337438195,-500.0,0.00010464,2]
[346877223,1735337438205,-500.0,0.00010464,2]
[346877224,1735337438215,-500.0,0.00010464,2]
[346877225,1735337438225,-500.0,0.00010464,2]
[346877226,1735337438234,-338.18427263,0.00010464,2]
[346877227,1735337438244,-523.0,0.00010464,2]
[346877228,1735337438253,-500.0,0.00010464,2]
[346877229,1735337438263,-500.0,0.00010464,2]
[346877230,1735337438272,-500.0,0.00010464,2]
[346877231,1735337438282,-500.0,0.00010464,2]
[346877232,1735337438291,-500.0,0.00010464,2]
[346877233,1735337438301,-500.0,0.00010464,2]
[346877234,1735337438310,-500.0,0.00010464,2]
[346877235,1735337438319,-600.36,0.00010464,2]
[346877236,1735337438328,-500.0,0.00010464,2]
[346877237,1735337438338,-500.0,0.00010464,2]
[346877238,1735337438347,-500.0,0.00010464,2]
[346877239,1735337438356,-500.0,0.00010464,2]
[346877240,1735337438365,-500.0,0.00010464,2]
[346877241,1735337438375,-500.0,0.00010464,2]
[346877242,1735337438384,-500.0,0.00010464,2]
[346877243,1735337438394,-500.0,0.00010464,2]
[346877244,1735337438404,-500.0,0.00010464,2]
[346877245,1735337438413,-500.0,0.00010464,2]
[346877246,1735337438423,-500.0,0.00010464,2]
[346877247,1735337438433,-500.0,0.00010464,2]
[346877248,1735337438443,-500.0,0.00010464,2]
[346877249,1735337438452,-502.87541995,0.00010464,2]
[346877250,1735337438462,-500.0,0.00010464,2]
[346877251,1735337438471,-500.0,0.00010464,2]
[346877252,1735337438480,-500.0,0.00010464,2]
[346877253,1735337438489,-500.0,0.00010464,2]
[346877254,1735337438499,-500.0,0.00010464,2]
[346877255,1735337438508,-500.0,0.00010464,2]
[346877256,1735337438518,-500.0,0.00010464,2]
[346877257,1735337438527,-500.0,0.00010464,2]
[346877258,1735337438537,-500.0,0.00010464,2]
[346877259,1735337438547,-500.0,0.00010464,2]
[346877260,1735337438557,-500.0,0.00010464,2]
[346877261,1735337438567,-500.0,0.00010464,2]
[346877262,1735337438577,-500.0,0.00010464,2]
[346877263,1735337438586,-500.0,0.00010464,2]
[346877264,1735337438596,-500.0,0.00010464,2]
[346877265,1735337438605,-127.46231388,0.00010464,2]
[346877266,1735337438626,-372.53768612,0.00010464,2]
[346877267,1735337438636,-500.0,0.00010464,2]
[346877268,1735337438645,-500.0,0.00010464,2]
[346877269,1735337438655,-500.0,0.00010464,2]
[346877270,1735337438664,-562.64,0.00010464,2]
[346877271,1735337438674,-500.0,0.00010464,2]
[346877272,1735337438683,-500.0,0.00010464,2]
[346877273,1735337438692,-500.0,0.00010464,2]
[346877274,1735337438702,-500.0,0.00010464,2]
[346877275,1735337438712,-500.0,0.00010464,2]
[346877276,1735337438721,-500.0,0.00010464,2]
[346877277,1735337438731,-500.0,0.00010464,2]
[346877278,1735337438741,-500.0,0.00010464,2]
[346877279,1735337438751,-500.0,0.00010464,2]
[346877280,1735337438761,-500.0,0.00010464,2]
[346877281,1735337438770,-500.0,0.00010464,2]
[346877282,1735337438780,-500.0,0.00010464,2]
[346877283,1735337438789,-500.0,0.00010464,2]
[346877284,1735337438798,-500.0,0.00010464,2]
[346877285,1735337438809,-500.0,0.00010464,2]
[346877286,1735337438818,-500.0,0.00010464,2]
[346877287,1735337438827,-500.0,0.00010464,2]
[346877288,1735337438837,-500.0,0.00010464,2]
[346877289,1735337438847,-500.0,0.00010464,2]
[346877290,1735337438856,-500.0,0.00010464,2]
[346877291,1735337438865,-500.0,0.00010464,2]
[346877292,1735337438875,-500.0,0.00010464,2]
[346877293,1735337438884,-626.84,0.00010464,2]
[346877294,1735337438893,-500.0,0.00010464,2]
[346877295,1735337438903,-500.0,0.00010464,2]
[346877296,1735337438912,-500.0,0.00010464,2]
[346877297,1735337438925,-500.0,0.00010464,2]
[346877298,1735337438934,-500.0,0.00010464,2]
[346877299,1735337438943,-500.0,0.00010464,2]